[Event "Late-Titled-Tuesday-Blitz-September-26-2023"]
[Site "Chess.com"]
[Date "2023.09.26"]
[Round "2"]
[White "FairChess_on_YouTube"]
[Black "lefonghua"]
[Result "1-0"]
[WhiteElo "3091"]
[BlackElo "2640"]
[TimeControl "180+1"]
[EndTime "14:18:50 PDT"]
[Termination "FairChess_on_YouTube won by resignation"]

1. Nf3 {[%clk 0:03:00.9]} 1... Nf6 {[%clk 0:02:59.9]} 2. c4 {[%clk 0:02:59.7]}
2... c5 {[%clk 0:02:58.4]} 3. Nc3 {[%clk 0:02:57.4]} 3... g6 {[%clk 0:02:58.8]}
4. g3 {[%clk 0:02:54.5]} 4... Bg7 {[%clk 0:02:59.3]} 5. Bg2 {[%clk 0:02:55]}
5... O-O {[%clk 0:03:00]} 6. d4 {[%clk 0:02:52.5]} 6... d6 {[%clk 0:02:59.5]} 7.
O-O {[%clk 0:02:49.6]} 7... Nc6 {[%clk 0:02:59.1]} 8. e3 {[%clk 0:02:41.7]} 8...
cxd4 {[%clk 0:02:56.1]} 9. Nxd4 {[%clk 0:02:42.2]} 9... Bd7 {[%clk 0:02:53.7]}
10. b3 {[%clk 0:02:41.8]} 10... Qa5 {[%clk 0:02:52.5]} 11. Bb2 {[%clk
0:02:40.9]} 11... Rfc8 {[%clk 0:02:51.8]} 12. Rc1 {[%clk 0:02:39.5]} 12... a6
{[%clk 0:02:49.5]} 13. Re1 {[%clk 0:02:32.9]} 13... Rab8 {[%clk 0:02:48.8]} 14.
a4 {[%clk 0:02:29.1]} 14... Qb4 {[%clk 0:02:21.5]} 15. h4 {[%clk 0:02:22.4]}
15... h5 {[%clk 0:02:19.7]} 16. Na2 {[%clk 0:02:18.7]} 16... Qa5 {[%clk
0:02:16.6]} 17. Bc3 {[%clk 0:02:13.6]} 17... Qd8 {[%clk 0:02:14.9]} 18. Qd2
{[%clk 0:02:12.6]} 18... Ng4 {[%clk 0:01:59]} 19. Nxc6 {[%clk 0:02:05.6]} 19...
Bxc6 {[%clk 0:01:58.2]} 20. Bxg7 {[%clk 0:02:04.7]} 20... Kxg7 {[%clk
0:01:59.1]} 21. Nb4 {[%clk 0:02:02.9]} 21... Bxg2 {[%clk 0:01:54.6]} 22. Kxg2
{[%clk 0:02:03.8]} 22... Nf6 {[%clk 0:01:54.9]} 23. Qd4 {[%clk 0:01:59.5]} 23...
Rc5 {[%clk 0:01:47.3]} 24. e4 {[%clk 0:01:58]} 24... a5 {[%clk 0:01:44.7]} 25.
Nd3 {[%clk 0:01:51]} 25... Rc6 {[%clk 0:01:45.1]} 26. e5 {[%clk 0:01:33.4]}
26... dxe5 {[%clk 0:01:41.5]} 27. Qxe5 {[%clk 0:01:34.3]} 27... Re6 {[%clk
0:01:30.5]} 28. Qc3 {[%clk 0:01:32.4]} 28... Rxe1 {[%clk 0:01:29.1]} 29. Rxe1
{[%clk 0:01:31.9]} 29... Kg8 {[%clk 0:01:26]} 30. Qe5 {[%clk 0:01:22]} 30... Rc8
{[%clk 0:01:21]} 31. Nf4 {[%clk 0:01:13.6]} 31... e6 {[%clk 0:01:07.4]} 32. Qb5
{[%clk 0:01:09.5]} 32... b6 {[%clk 0:00:57.9]} 33. Qe5 {[%clk 0:00:59.8]} 33...
Ng4 {[%clk 0:00:50.5]} 34. Qg5 {[%clk 0:00:53]} 34... Kh7 {[%clk 0:00:16.6]} 35.
Re2 {[%clk 0:00:16.5]} 35... Nf6 {[%clk 0:00:15.1]} 36. Nh3 {[%clk 0:00:05.7]}
36... Rc5 {[%clk 0:00:14.7]} 37. Qe3 {[%clk 0:00:03.4]} 37... Ng4 {[%clk
0:00:12.7]} 38. Ng5+ {[%clk 0:00:02.9]} 38... Kg7 {[%clk 0:00:12.6]} 39. Qd2
{[%clk 0:00:03.3]} 39... Qf6 {[%clk 0:00:11.5]} 40. f3 {[%clk 0:00:03.7]} 40...
Ne5 {[%clk 0:00:11.4]} 41. Qc3 {[%clk 0:00:03.8]} 41... Nc6 {[%clk 0:00:11.4]}
42. Qxf6+ {[%clk 0:00:03.9]} 42... Kxf6 {[%clk 0:00:11.7]} 43. Ne4+ {[%clk
0:00:04.8]} 43... Ke7 {[%clk 0:00:12]} 44. Nxc5 {[%clk 0:00:05.4]} 44... bxc5
{[%clk 0:00:12.9]} 45. Re3 {[%clk 0:00:05.7]} 45... Nd4 {[%clk 0:00:13.3]} 46.
g4 {[%clk 0:00:05.9]} 46... Kf6 {[%clk 0:00:11.5]} 47. Kg3 {[%clk 0:00:05.4]}
47... Ke7 {[%clk 0:00:11.8]} 48. Re5 {[%clk 0:00:04.8]} 48... Kd6 {[%clk
0:00:11.4]} 49. Re3 {[%clk 0:00:04.8]} 49... f6 {[%clk 0:00:11.3]} 50. gxh5
{[%clk 0:00:04.4]} 50... gxh5 {[%clk 0:00:12.2]} 51. Kf2 {[%clk 0:00:04.5]}
51... e5 {[%clk 0:00:10.8]} 52. Re1 {[%clk 0:00:04]} 52... Nxb3 {[%clk
0:00:09.7]} 53. Rb1 {[%clk 0:00:04.2]} 53... Nd2 {[%clk 0:00:09.7]} 54. Rb6+
{[%clk 0:00:04.7]} 54... Ke7 {[%clk 0:00:09.6]} 55. Rb5 {[%clk 0:00:05.1]} 55...
Nxc4 {[%clk 0:00:10]} 56. Rxc5 {[%clk 0:00:05.2]} 56... Nb2 {[%clk 0:00:10.5]}
57. Rxa5 {[%clk 0:00:05.4]} 57... Kd6 {[%clk 0:00:10.8]} 58. Ra6+ {[%clk
0:00:05.2]} 58... Ke7 {[%clk 0:00:11.3]} 59. a5 {[%clk 0:00:05.4]} 59... f5
{[%clk 0:00:11.8]} 60. Rh6 {[%clk 0:00:05]} 60... Nd3+ {[%clk 0:00:11.5]} 61.
Kf1 {[%clk 0:00:05.1]} 61... e4 {[%clk 0:00:11.5]} 62. fxe4 {[%clk 0:00:04.8]}
62... fxe4 {[%clk 0:00:12.4]} 63. a6 {[%clk 0:00:05.4]} 1-0

[Event "Late-Titled-Tuesday-Blitz-September-26-2023"]
[Site "Chess.com"]
[Date "2023.09.26"]
[Round "2"]
[White "Mykola-Bortnyk"]
[Black "sergeikim"]
[Result "1-0"]
[WhiteElo "2984"]
[BlackElo "2607"]
[TimeControl "180+1"]
[EndTime "14:18:52 PDT"]
[Termination "Mykola-Bortnyk won on time"]

1. e4 {[%clk 0:03:00.9]} 1... e5 {[%clk 0:02:59.3]} 2. Nf3 {[%clk 0:03:01.2]}
2... Nc6 {[%clk 0:02:59.7]} 3. Bb5 {[%clk 0:02:58.1]} 3... a6 {[%clk 0:03:00]}
4. Ba4 {[%clk 0:02:58.3]} 4... Nf6 {[%clk 0:03:00.1]} 5. Qe2 {[%clk 0:02:59]}
5... b5 {[%clk 0:02:59.9]} 6. Bb3 {[%clk 0:02:59.1]} 6... Bc5 {[%clk 0:02:59.8]}
7. O-O {[%clk 0:02:59.4]} 7... O-O {[%clk 0:02:58.7]} 8. c3 {[%clk 0:02:57]}
8... d6 {[%clk 0:02:58.4]} 9. Rd1 {[%clk 0:02:55]} 9... Bg4 {[%clk 0:02:54.1]}
10. h3 {[%clk 0:02:53]} 10... Bh5 {[%clk 0:02:53.6]} 11. d3 {[%clk 0:02:45.5]}
11... h6 {[%clk 0:02:52.2]} 12. Nbd2 {[%clk 0:02:44.4]} 12... a5 {[%clk
0:02:38.5]} 13. a4 {[%clk 0:02:43.5]} 13... b4 {[%clk 0:02:38]} 14. g4 {[%clk
0:02:34.9]} 14... Bg6 {[%clk 0:02:36.6]} 15. Nf1 {[%clk 0:02:28.8]} 15... bxc3
{[%clk 0:02:32.7]} 16. bxc3 {[%clk 0:02:29.4]} 16... Rb8 {[%clk 0:02:32.7]} 17.
Bc4 {[%clk 0:02:29.9]} 17... d5 {[%clk 0:02:29.2]} 18. Bb5 {[%clk 0:02:18.9]}
18... Rb6 {[%clk 0:02:07.1]} 19. Bxc6 {[%clk 0:01:53.2]} 19... Rxc6 {[%clk
0:02:06.3]} 20. Nxe5 {[%clk 0:01:53.8]} 20... Re6 {[%clk 0:02:01.6]} 21. Nxg6
{[%clk 0:01:33.3]} 21... fxg6 {[%clk 0:02:00.6]} 22. Be3 {[%clk 0:01:33.9]}
22... Bd6 {[%clk 0:01:52.4]} 23. f4 {[%clk 0:01:11.1]} 23... dxe4 {[%clk
0:01:48.9]} 24. Qa2 {[%clk 0:01:10.3]} 24... Qd7 {[%clk 0:01:19.7]} 25. f5
{[%clk 0:01:09.9]} 25... gxf5 {[%clk 0:01:20.6]} 26. gxf5 {[%clk 0:01:10.5]}
26... Re8 {[%clk 0:01:20.4]} 27. fxe6 {[%clk 0:01:10.3]} 27... Rxe6 {[%clk
0:01:21.3]} 28. dxe4 {[%clk 0:01:07.3]} 28... Nxe4 {[%clk 0:01:19.8]} 29. Bf4
{[%clk 0:00:36.1]} 29... Nxc3 {[%clk 0:01:15.3]} 30. Qc4 {[%clk 0:00:32.7]}
30... Ne2+ {[%clk 0:01:10.1]} 31. Kh1 {[%clk 0:00:29.7]} 31... Nxf4 {[%clk
0:01:09.8]} 32. Ra2 {[%clk 0:00:24.5]} 32... Kh8 {[%clk 0:00:57.8]} 33. Rf2
{[%clk 0:00:24.1]} 33... Rf6 {[%clk 0:00:45.4]} 34. Nh2 {[%clk 0:00:19.3]} 34...
Qf5 {[%clk 0:00:34.1]} 35. Ng4 {[%clk 0:00:17.4]} 35... Re6 {[%clk 0:00:29.2]}
36. Rdf1 {[%clk 0:00:17.7]} 36... Re4 {[%clk 0:00:29.3]} 37. Qd3 {[%clk
0:00:14.4]} 37... h5 {[%clk 0:00:25.8]} 38. Nh2 {[%clk 0:00:14.2]} 38... Qd5
{[%clk 0:00:18.3]} 39. Qxd5 {[%clk 0:00:13.6]} 39... Nxd5 {[%clk 0:00:18.8]} 40.
Rf5 {[%clk 0:00:14.4]} 40... Nf6 {[%clk 0:00:17.6]} 41. R1f2 {[%clk 0:00:12.6]}
41... Rxa4 {[%clk 0:00:17.4]} 42. Re2 {[%clk 0:00:11.6]} 42... Kh7 {[%clk
0:00:16.7]} 43. Nf3 {[%clk 0:00:12]} 43... Ra3 {[%clk 0:00:15.7]} 44. Kg2 {[%clk
0:00:11.6]} 44... a4 {[%clk 0:00:15]} 45. Ra5 {[%clk 0:00:11.9]} 45... Kg6
{[%clk 0:00:13.4]} 46. Nh4+ {[%clk 0:00:11.9]} 46... Kf7 {[%clk 0:00:13]} 47.
Nf5 {[%clk 0:00:12.8]} 47... Ra1 {[%clk 0:00:10.2]} 48. Ra7 {[%clk 0:00:13.3]}
48... a3 {[%clk 0:00:09.8]} 49. Nxd6+ {[%clk 0:00:13.6]} 49... Kg6 {[%clk
0:00:07.8]} 50. Nb5 {[%clk 0:00:13.5]} 50... Rb1 {[%clk 0:00:06.5]} 51. Nxa3
{[%clk 0:00:13.6]} 51... Rb3 {[%clk 0:00:06.3]} 52. Nc4 {[%clk 0:00:12.8]} 52...
Nd5 {[%clk 0:00:05.6]} 53. Ne5+ {[%clk 0:00:12.3]} 53... Kf5 {[%clk 0:00:05.3]}
54. Kf2 {[%clk 0:00:04.6]} 54... Nf4 {[%clk 0:00:05.3]} 55. Re1 {[%clk 0:00:05]}
55... Nxh3+ {[%clk 0:00:04.7]} 56. Kg2 {[%clk 0:00:05.4]} 56... Nf4+ {[%clk
0:00:04.8]} 57. Kg1 {[%clk 0:00:06.2]} 57... Rg3+ {[%clk 0:00:04.3]} 58. Kf2
{[%clk 0:00:06.9]} 58... Rg2+ {[%clk 0:00:04.4]} 59. Kf3 {[%clk 0:00:07.6]}
59... Rc2 {[%clk 0:00:02]} 60. Ra5 {[%clk 0:00:07.2]} 60... Rc3+ {[%clk
0:00:01.6]} 61. Nd3+ {[%clk 0:00:07.3]} 1-0

[Event "Late-Titled-Tuesday-Blitz-September-26-2023"]
[Site "Chess.com"]
[Date "2023.09.26"]
[Round "2"]
[White "Mops_2004"]
[Black "Bilan_Danila"]
[Result "1-0"]
[WhiteElo "2788"]
[BlackElo "2514"]
[TimeControl "180+1"]
[EndTime "14:18:53 PDT"]
[Termination "Mops_2004 won by resignation"]

1. g3 {[%clk 0:03:00.9]} 1... d5 {[%clk 0:02:59.7]} 2. Nf3 {[%clk 0:03:00.3]}
2... Nf6 {[%clk 0:03:00.6]} 3. Bg2 {[%clk 0:03:00.5]} 3... c5 {[%clk 0:03:00.1]}
4. O-O {[%clk 0:03:00.8]} 4... Nc6 {[%clk 0:03:01]} 5. d3 {[%clk 0:03:01.1]}
5... Bg4 {[%clk 0:03:01.3]} 6. h3 {[%clk 0:02:59.1]} 6... Bh5 {[%clk 0:03:01.2]}
7. c4 {[%clk 0:02:58.8]} 7... e6 {[%clk 0:03:01]} 8. g4 {[%clk 0:02:50.3]} 8...
Bg6 {[%clk 0:03:00.3]} 9. Nh4 {[%clk 0:02:50.3]} 9... dxc4 {[%clk 0:02:34.5]}
10. Nxg6 {[%clk 0:02:39.1]} 10... hxg6 {[%clk 0:02:35.4]} 11. dxc4 {[%clk
0:02:38.7]} 11... Qc7 {[%clk 0:02:26.4]} 12. e3 {[%clk 0:02:31.5]} 12... Rd8
{[%clk 0:02:09.4]} 13. Qe2 {[%clk 0:02:31.2]} 13... Ne5 {[%clk 0:01:52.6]} 14.
Rd1 {[%clk 0:02:25.6]} 14... Rxd1+ {[%clk 0:01:31.3]} 15. Qxd1 {[%clk
0:02:25.2]} 15... Bd6 {[%clk 0:01:15.2]} 16. Nc3 {[%clk 0:02:21.4]} 16... a6
{[%clk 0:01:08.6]} 17. g5 {[%clk 0:02:18.7]} 17... Nfd7 {[%clk 0:01:02.4]} 18.
Ne4 {[%clk 0:02:18.3]} 18... Be7 {[%clk 0:00:57.2]} 19. b3 {[%clk 0:02:18.4]}
19... O-O {[%clk 0:00:47.9]} 20. Bb2 {[%clk 0:02:18.4]} 20... Rd8 {[%clk
0:00:42.9]} 21. Qc2 {[%clk 0:02:17]} 21... b6 {[%clk 0:00:41.2]} 22. Rd1 {[%clk
0:02:16]} 22... Nc6 {[%clk 0:00:36.8]} 23. a3 {[%clk 0:02:12]} 23... Nde5 {[%clk
0:00:28.2]} 24. f4 {[%clk 0:02:10]} 24... Rxd1+ {[%clk 0:00:27.1]} 25. Qxd1
{[%clk 0:02:10.9]} 25... Nd7 {[%clk 0:00:25.3]} 26. h4 {[%clk 0:02:10.8]} 26...
e5 {[%clk 0:00:18.6]} 27. Nc3 {[%clk 0:02:09.7]} 27... exf4 {[%clk 0:00:13.6]}
28. Nd5 {[%clk 0:02:09.7]} 28... Qd6 {[%clk 0:00:13.3]} 29. exf4 {[%clk
0:02:08.1]} 29... Bf8 {[%clk 0:00:11.8]} 30. Bc3 {[%clk 0:01:50.5]} 30... a5
{[%clk 0:00:12]} 31. h5 {[%clk 0:01:40.1]} 31... gxh5 {[%clk 0:00:11.3]} 32.
Qxh5 {[%clk 0:01:41]} 32... Nd4 {[%clk 0:00:11.3]} 33. Be4 {[%clk 0:01:38.6]}
33... g6 {[%clk 0:00:11.4]} 34. Qh3 {[%clk 0:01:19.4]} 34... Ne2+ {[%clk
0:00:10.3]} 35. Kf2 {[%clk 0:01:12.9]} 35... Nxc3 {[%clk 0:00:10.4]} 36. Qxc3
{[%clk 0:01:12.7]} 36... Bg7 {[%clk 0:00:11.3]} 37. Qd3 {[%clk 0:01:10.4]} 37...
Bd4+ {[%clk 0:00:11.2]} 38. Kf3 {[%clk 0:01:10.7]} 38... Qe6 {[%clk 0:00:11.2]}
39. Kg3 {[%clk 0:01:07]} 39... Kg7 {[%clk 0:00:10]} 40. b4 {[%clk 0:01:04.8]}
40... axb4 {[%clk 0:00:09.4]} 41. axb4 {[%clk 0:01:05.6]} 41... Qd6 {[%clk
0:00:09.5]} 42. b5 {[%clk 0:01:03.5]} 42... Nf8 {[%clk 0:00:07.8]} 43. Nf6
{[%clk 0:00:55.9]} 43... Qe7 {[%clk 0:00:04]} 44. Ng4 {[%clk 0:00:44.5]} 44...
Ne6 {[%clk 0:00:04.2]} 45. Bd5 {[%clk 0:00:43.7]} 45... Qd6 {[%clk 0:00:03.9]}
46. Qe4 {[%clk 0:00:24.7]} 46... Nxg5 {[%clk 0:00:04.1]} 47. Qe8 {[%clk
0:00:25.4]} 47... Ne6 {[%clk 0:00:04.4]} 48. Bxe6 {[%clk 0:00:24.3]} 48... Qxe6
{[%clk 0:00:04.7]} 49. Qxe6 {[%clk 0:00:22.3]} 49... fxe6 {[%clk 0:00:05.6]} 50.
Kf3 {[%clk 0:00:22.7]} 50... Kf7 {[%clk 0:00:04.8]} 51. Ke4 {[%clk 0:00:22.7]}
51... Ke7 {[%clk 0:00:04.9]} 52. Ne5 {[%clk 0:00:16.6]} 52... Bxe5 {[%clk
0:00:04.6]} 53. Kxe5 {[%clk 0:00:17.5]} 53... Kf7 {[%clk 0:00:03.4]} 54. Kd6
{[%clk 0:00:18.1]} 54... Kf6 {[%clk 0:00:03.5]} 55. Kc6 {[%clk 0:00:18.7]} 55...
e5 {[%clk 0:00:03.8]} 56. fxe5+ {[%clk 0:00:18.4]} 56... Kxe5 {[%clk 0:00:04.7]}
57. Kxb6 {[%clk 0:00:19.1]} 57... g5 {[%clk 0:00:05.2]} 58. Kxc5 {[%clk
0:00:14.7]} 58... g4 {[%clk 0:00:05.7]} 59. b6 {[%clk 0:00:14.8]} 59... g3
{[%clk 0:00:06.3]} 60. b7 {[%clk 0:00:15.7]} 60... g2 {[%clk 0:00:06.9]} 61.
b8=Q+ {[%clk 0:00:16.2]} 61... Ke4 {[%clk 0:00:07.8]} 62. Qg8 {[%clk 0:00:16.7]}
62... Kf3 {[%clk 0:00:08.7]} 63. Qxg2+ {[%clk 0:00:17]} 63... Kxg2 {[%clk
0:00:09]} 64. Kd5 {[%clk 0:00:17.9]} 1-0

[Event "Late-Titled-Tuesday-Blitz-September-26-2023"]
[Site "Chess.com"]
[Date "2023.09.26"]
[Round "2"]
[White "jamengrand"]
[Black "Andrei_Skvortsov"]
[Result "0-1"]
[WhiteElo "2253"]
[BlackElo "2675"]
[TimeControl "180+1"]
[EndTime "14:18:56 PDT"]
[Termination "Andrei_Skvortsov won by resignation"]

1. e4 {[%clk 0:03:00.9]} 1... c5 {[%clk 0:02:58.1]} 2. Be2 {[%clk 0:02:59.9]}
2... Nf6 {[%clk 0:02:48.8]} 3. d3 {[%clk 0:02:59.5]} 3... d5 {[%clk 0:02:47.6]}
4. e5 {[%clk 0:02:59.2]} 4... Nfd7 {[%clk 0:02:45.6]} 5. f4 {[%clk 0:02:59.5]}
5... e6 {[%clk 0:02:44.2]} 6. Nf3 {[%clk 0:02:59.4]} 6... Nc6 {[%clk 0:02:43.9]}
7. c3 {[%clk 0:02:59.6]} 7... b6 {[%clk 0:02:41.2]} 8. a3 {[%clk 0:02:57.7]}
8... d4 {[%clk 0:02:39.2]} 9. cxd4 {[%clk 0:02:55.7]} 9... Nxd4 {[%clk 0:02:37]}
10. Nxd4 {[%clk 0:02:55.5]} 10... cxd4 {[%clk 0:02:37.9]} 11. Bf3 {[%clk
0:02:55.6]} 11... Ba6 {[%clk 0:02:30.8]} 12. O-O {[%clk 0:02:20.5]} 12... Rb8
{[%clk 0:02:08.1]} 13. b4 {[%clk 0:02:18.7]} 13... Bb7 {[%clk 0:02:05.1]} 14.
Nd2 {[%clk 0:02:15.7]} 14... Be7 {[%clk 0:01:54.9]} 15. Bb2 {[%clk 0:02:14.9]}
15... O-O {[%clk 0:01:50.9]} 16. Rc1 {[%clk 0:02:07.5]} 16... b5 {[%clk
0:01:46.1]} 17. Nb3 {[%clk 0:01:52]} 17... Nb6 {[%clk 0:01:44.2]} 18. Nc5 {[%clk
0:01:45.5]} 18... Bxc5 {[%clk 0:01:39]} 19. bxc5 {[%clk 0:01:45.7]} 19... Bxf3
{[%clk 0:01:33.5]} 20. Qxf3 {[%clk 0:01:42.5]} 20... Na4 {[%clk 0:01:33.5]} 21.
Ba1 {[%clk 0:01:42.7]} 21... Nc3 {[%clk 0:01:28.8]} 22. Bxc3 {[%clk 0:01:25.6]}
22... dxc3 {[%clk 0:01:28.6]} 23. Qe4 {[%clk 0:01:26.1]} 23... Qa5 {[%clk
0:01:27.5]} 24. Qb4 {[%clk 0:01:25.9]} 24... Qc7 {[%clk 0:01:15.4]} 25. Rxc3
{[%clk 0:01:18.7]} 25... Rfd8 {[%clk 0:01:14.2]} 26. c6 {[%clk 0:01:16.9]} 26...
Rd5 {[%clk 0:01:12.2]} 27. Qe4 {[%clk 0:01:09.2]} 27... g6 {[%clk 0:01:10.5]}
28. Rfc1 {[%clk 0:01:08.4]} 28... Rbd8 {[%clk 0:01:09.3]} 29. h3 {[%clk
0:01:07.3]} 29... Rd4 {[%clk 0:01:09]} 30. Qf3 {[%clk 0:01:07.4]} 30... a5
{[%clk 0:01:06.4]} 31. Kh1 {[%clk 0:00:47]} 31... Ra4 {[%clk 0:01:03.8]} 32. Qe3
{[%clk 0:00:25.8]} 32... Rdd4 {[%clk 0:01:00.2]} 33. f5 {[%clk 0:00:23.3]} 33...
exf5 {[%clk 0:00:58.5]} 34. e6 {[%clk 0:00:23.8]} 34... fxe6 {[%clk 0:00:48.6]}
35. Qxe6+ {[%clk 0:00:23.3]} 35... Kg7 {[%clk 0:00:49.1]} 36. Re1 {[%clk
0:00:19.1]} 36... Rd8 {[%clk 0:00:49]} 37. Qe7+ {[%clk 0:00:19]} 37... Qxe7
{[%clk 0:00:48.4]} 38. Rxe7+ {[%clk 0:00:19.7]} 38... Kf6 {[%clk 0:00:47.9]} 39.
Rb7 {[%clk 0:00:18]} 39... b4 {[%clk 0:00:46.4]} 40. axb4 {[%clk 0:00:18.2]}
40... axb4 {[%clk 0:00:47.3]} 41. Rc4 {[%clk 0:00:18.4]} 41... Raa8 {[%clk
0:00:42.5]} 42. c7 {[%clk 0:00:17.8]} 42... Rdc8 {[%clk 0:00:26.9]} 43. Rcxb4
{[%clk 0:00:18.2]} 43... Ra3 {[%clk 0:00:23.5]} 44. Rc4 {[%clk 0:00:13.8]} 44...
Ke6 {[%clk 0:00:20.4]} 45. Rb8 {[%clk 0:00:13.4]} 45... Kd7 {[%clk 0:00:20.8]}
46. Rxc8 {[%clk 0:00:12.3]} 46... Kxc8 {[%clk 0:00:21.7]} 47. d4 {[%clk
0:00:12.5]} 47... f4 {[%clk 0:00:20.9]} 48. Kh2 {[%clk 0:00:11.5]} 48... g5
{[%clk 0:00:20.8]} 49. d5 {[%clk 0:00:10.8]} 49... Rd3 {[%clk 0:00:20.1]} 50.
Rc5 {[%clk 0:00:11.1]} 50... h6 {[%clk 0:00:20.4]} 51. Kg1 {[%clk 0:00:09.4]}
51... Rd1+ {[%clk 0:00:20.4]} 52. Kf2 {[%clk 0:00:09.8]} 52... Rd3 {[%clk
0:00:21.1]} 53. h4 {[%clk 0:00:07.2]} 53... g4 {[%clk 0:00:20.9]} 54. h5 {[%clk
0:00:06.6]} 54... Rd4 {[%clk 0:00:20.9]} 55. Ke2 {[%clk 0:00:01.5]} 55... Ra4
{[%clk 0:00:17.1]} 56. Ke1 {[%clk 0:00:01.5]} 56... Ra2 {[%clk 0:00:18]} 57. Kd1
{[%clk 0:00:01.4]} 57... f3 {[%clk 0:00:14.3]} 58. d6 {[%clk 0:00:02.3]} 58...
Ra8 {[%clk 0:00:12.8]} 59. d7+ {[%clk 0:00:02.5]} 59... Kxd7 {[%clk 0:00:12.9]}
60. gxf3 {[%clk 0:00:02.4]} 60... g3 {[%clk 0:00:12.7]} 61. Ke1 {[%clk
0:00:01.2]} 61... Ra1+ {[%clk 0:00:12.3]} 62. Ke2 {[%clk 0:00:01.1]} 62... Kc8
{[%clk 0:00:13]} 63. Rc6 {[%clk 0:00:01.3]} 63... g2 {[%clk 0:00:13.2]} 64. Rg6
{[%clk 0:00:01.5]} 64... g1=Q {[%clk 0:00:13.5]} 65. Rxg1 {[%clk 0:00:01.7]}
65... Rxg1 {[%clk 0:00:14.4]} 66. Ke3 {[%clk 0:00:02.3]} 66... Rg5 {[%clk
0:00:14.6]} 67. Kf4 {[%clk 0:00:03.2]} 67... Kxc7 {[%clk 0:00:14.7]} 0-1

[Event "Late-Titled-Tuesday-Blitz-September-26-2023"]
[Site "Chess.com"]
[Date "2023.09.26"]
[Round "2"]
[White "wild3000"]
[Black "Sokoloco"]
[Result "1/2-1/2"]
[WhiteElo "2335"]
[BlackElo "2690"]
[TimeControl "180+1"]
[EndTime "14:19:03 PDT"]
[Termination "Game drawn by repetition"]

1. e4 {[%clk 0:02:58.9]} 1... d6 {[%clk 0:02:58.1]} 2. Nf3 {[%clk 0:02:56.8]}
2... g6 {[%clk 0:02:58.4]} 3. d4 {[%clk 0:02:56.6]} 3... Bg7 {[%clk 0:02:59]} 4.
g3 {[%clk 0:02:55.8]} 4... Nf6 {[%clk 0:02:58.1]} 5. Nc3 {[%clk 0:02:55.3]} 5...
O-O {[%clk 0:02:58.2]} 6. Bg2 {[%clk 0:02:55.1]} 6... Nc6 {[%clk 0:02:53.8]} 7.
O-O {[%clk 0:02:51.5]} 7... Bg4 {[%clk 0:02:40.8]} 8. Be3 {[%clk 0:02:43.7]}
8... e5 {[%clk 0:02:40.3]} 9. d5 {[%clk 0:02:39.7]} 9... Ne7 {[%clk 0:02:37.8]}
10. Qd3 {[%clk 0:02:35.5]} 10... Nh5 {[%clk 0:02:29.6]} 11. Nd2 {[%clk
0:02:33.8]} 11... Qd7 {[%clk 0:02:23.8]} 12. f3 {[%clk 0:02:26.8]} 12... Bh3
{[%clk 0:02:24.1]} 13. Qb5 {[%clk 0:02:09.7]} 13... c6 {[%clk 0:02:23.8]} 14.
dxc6 {[%clk 0:02:08.7]} 14... bxc6 {[%clk 0:02:24.7]} 15. Qd3 {[%clk 0:01:55.7]}
15... Bxg2 {[%clk 0:02:20.5]} 16. Kxg2 {[%clk 0:01:55.6]} 16... d5 {[%clk
0:02:19.9]} 17. Na4 {[%clk 0:01:39.8]} 17... f5 {[%clk 0:02:05.9]} 18. Nc5
{[%clk 0:01:35.1]} 18... Qc8 {[%clk 0:01:55.7]} 19. Bg5 {[%clk 0:01:33.7]} 19...
Nf6 {[%clk 0:01:52.6]} 20. Rae1 {[%clk 0:01:22.1]} 20... h6 {[%clk 0:01:47.7]}
21. Bxf6 {[%clk 0:01:19.4]} 21... Bxf6 {[%clk 0:01:48.6]} 22. c3 {[%clk
0:01:12.9]} 22... Rb8 {[%clk 0:01:16.4]} 23. b4 {[%clk 0:01:12.2]} 23... a5
{[%clk 0:01:16.4]} 24. a3 {[%clk 0:01:12.1]} 24... axb4 {[%clk 0:01:16.6]} 25.
axb4 {[%clk 0:01:12.4]} 25... Ra8 {[%clk 0:01:17.2]} 26. Ra1 {[%clk 0:01:11.7]}
26... Rd8 {[%clk 0:01:00]} 27. exf5 {[%clk 0:01:01]} 27... Qxf5 {[%clk
0:00:55.4]} 28. Qxf5 {[%clk 0:00:51.7]} 28... gxf5 {[%clk 0:00:56.3]} 29. Ne6
{[%clk 0:00:47]} 29... Rdc8 {[%clk 0:00:54.7]} 30. Nb3 {[%clk 0:00:46.3]} 30...
Kf7 {[%clk 0:00:50.2]} 31. Nec5 {[%clk 0:00:44]} 31... Ng6 {[%clk 0:00:30.4]}
32. Rxa8 {[%clk 0:00:39]} 32... Rxa8 {[%clk 0:00:30.3]} 33. Na5 {[%clk
0:00:39.6]} 33... Ke7 {[%clk 0:00:30.6]} 34. Nxc6+ {[%clk 0:00:36.5]} 34... Kd6
{[%clk 0:00:31.2]} 35. Na5 {[%clk 0:00:28.2]} 35... Nf8 {[%clk 0:00:14.2]} 36.
Ra1 {[%clk 0:00:23.3]} 36... Kc7 {[%clk 0:00:14.9]} 37. Rd1 {[%clk 0:00:22]}
37... d4 {[%clk 0:00:11.8]} 38. cxd4 {[%clk 0:00:20.4]} 38... exd4 {[%clk
0:00:12.7]} 39. Nab3 {[%clk 0:00:20]} 39... Rd8 {[%clk 0:00:11]} 40. Rd3 {[%clk
0:00:19.6]} 40... Kc6 {[%clk 0:00:10.4]} 41. f4 {[%clk 0:00:17.9]} 41... Kb5
{[%clk 0:00:10]} 42. h3 {[%clk 0:00:12]} 42... Kxb4 {[%clk 0:00:09.7]} 43. g4
{[%clk 0:00:12]} 43... Kc4 {[%clk 0:00:10]} 44. Rd1 {[%clk 0:00:11.3]} 44... d3
{[%clk 0:00:09.4]} 45. Nb7 {[%clk 0:00:10.2]} 45... Rd5 {[%clk 0:00:08.9]} 46.
N7a5+ {[%clk 0:00:10.3]} 46... Kb4 {[%clk 0:00:08.5]} 47. Kf3 {[%clk 0:00:09.3]}
47... Bd8 {[%clk 0:00:08.5]} 48. gxf5 {[%clk 0:00:06.1]} 48... Bxa5 {[%clk
0:00:08.1]} 49. Nxa5 {[%clk 0:00:07]} 49... Kxa5 {[%clk 0:00:09]} 50. Ke4 {[%clk
0:00:06.8]} 50... Rd7 {[%clk 0:00:08.2]} 51. Rxd3 {[%clk 0:00:07]} 51... Rxd3
{[%clk 0:00:07.2]} 52. Kxd3 {[%clk 0:00:07.9]} 52... Kb6 {[%clk 0:00:03.4]} 53.
Kd4 {[%clk 0:00:08.2]} 53... Nd7 {[%clk 0:00:02.4]} 54. Kd5 {[%clk 0:00:08.4]}
54... Kc7 {[%clk 0:00:02.8]} 55. Ke6 {[%clk 0:00:08.6]} 55... Kd8 {[%clk
0:00:03.5]} 56. Kf7 {[%clk 0:00:07.4]} 56... Nc5 {[%clk 0:00:03.4]} 57. Kg6
{[%clk 0:00:06.7]} 57... Ke7 {[%clk 0:00:03.7]} 58. f6+ {[%clk 0:00:06.9]} 58...
Kf8 {[%clk 0:00:03.1]} 59. Kxh6 {[%clk 0:00:07.3]} 59... Kf7 {[%clk 0:00:04]}
60. Kg5 {[%clk 0:00:06.9]} 60... Ne6+ {[%clk 0:00:04]} 61. Kf5 {[%clk
0:00:05.8]} 61... Nd4+ {[%clk 0:00:04.7]} 62. Kg5 {[%clk 0:00:05.8]} 62... Ne6+
{[%clk 0:00:05.2]} 63. Kf5 {[%clk 0:00:06.2]} 63... Nd4+ {[%clk 0:00:05.9]} 64.
Ke5 {[%clk 0:00:06.5]} 64... Nf3+ {[%clk 0:00:04]} 65. Kf5 {[%clk 0:00:06.7]}
65... Nd4+ {[%clk 0:00:04.3]} 1/2-1/2